[Event "Titled Tuesday Blitz November 07 Early 2023"]
[White "Zhigalko, Sergei"]
[Black "Perdomo, Leandro"]
[WhiteFideId "13502956"]
[BlackFideId "109746"]
[WhiteElo "2892"]
[BlackElo "2697"]
[Result "0-1"]
[Round "7"]
[TimeControl "180+1"]
[Date "2023.11.07"]
[WhiteClock "0:00:00"]
[BlackClock "0:00:06"]
[Board "28"]

1. e4 {[%clk 0:03:00]}  e5 {[%clk 0:03:00]} 2. Nf3 {[%clk 0:03:00]}  Nc6 {[%clk 0:03:01]} 3. Bc4 {[%clk 0:03:00]}  Nf6 {[%clk 0:03:01]} 4. d3 {[%clk 0:03:00]}  Be7 {[%clk 0:03:01]} 5. O-O {[%clk 0:03:00]}  O-O {[%clk 0:03:02]} 6. Nbd2 {[%clk 0:03:00]}  d6 {[%clk 0:03:02]} 7. c3 {[%clk 0:03:01]}  Na5 {[%clk 0:03:02]} 8. Bb5 {[%clk 0:03:00]}  c5 {[%clk 0:03:03]} 9. Re1 {[%clk 0:02:48]}  a6 {[%clk 0:03:03]} 10. Ba4 {[%clk 0:02:48]}  b5 {[%clk 0:03:04]} 11. Bc2 {[%clk 0:02:48]}  Nc6 {[%clk 0:03:05]} 12. Nf1 {[%clk 0:02:41]}  Nd7 {[%clk 0:03:05]} 13. Ng3 {[%clk 0:02:36]}  Nb6 {[%clk 0:03:06]} 14. Be3 {[%clk 0:02:32]}  d5 {[%clk 0:03:03]} 15. exd5 {[%clk 0:02:27]}  Nxd5 {[%clk 0:03:04]} 16. Bd2 {[%clk 0:02:28]}  Qc7 {[%clk 0:02:48]} 17. Qe2 {[%clk 0:02:09]}  Nf4 {[%clk 0:02:45]} 18. Qf1 {[%clk 0:01:55]}  Bb7 {[%clk 0:02:16]} 19. d4 {[%clk 0:01:24]}  cxd4 {[%clk 0:02:10]} 20. cxd4 {[%clk 0:01:24]}  Nxd4 {[%clk 0:02:00]} 21. Bxf4 {[%clk 0:01:01]}  Nxf3+ {[%clk 0:01:49]} 22. gxf3 {[%clk 0:01:00]}  exf4 {[%clk 0:01:50]} 23. Nf5 {[%clk 0:00:44]}  Qxc2 {[%clk 0:01:30]} 24. Nxe7+ {[%clk 0:00:42]}  Kh8 {[%clk 0:01:30]} 25. Qh3 {[%clk 0:00:31]}  Qxb2 {[%clk 0:01:22]} 26. Rac1 {[%clk 0:00:14]}  Qa3 {[%clk 0:01:07]} 27. Kg2 {[%clk 0:00:11]}  Rae8 {[%clk 0:01:00]} 28. Rc7 {[%clk 0:00:10]}  Ba8 {[%clk 0:00:36]} 29. Re5 {[%clk 0:00:11]}  h6 {[%clk 0:00:30]} 30. Rd7 {[%clk 0:00:03]}  Qc3 {[%clk 0:00:19]} 31. Rh5 {[%clk 0:00:02]}  Qf6 {[%clk 0:00:18]} 32. Qh4 {[%clk 0:00:01]}  Qxh4 {[%clk 0:00:11]} 33. Rxh4 {[%clk 0:00:02]}  Rd8 {[%clk 0:00:10]} 34. Ra7 {[%clk 0:00:02]}  Rd3 {[%clk 0:00:10]} 35. Rxf4 {[%clk 0:00:02]}  Kh7 {[%clk 0:00:09]} 36. h4 {[%clk 0:00:02]}  Re8 {[%clk 0:00:09]} 37. h5 {[%clk 0:00:02]}  Ra3 {[%clk 0:00:08]} 38. Nf5 {[%clk 0:00:02]}  Bd5 {[%clk 0:00:07]} 39. Nd6 {[%clk 0:00:02]}  Rf8 {[%clk 0:00:07]} 40. Nxf7 {[%clk 0:00:02]}  Rxa2 {[%clk 0:00:04]} 41. Ng5+ {[%clk 0:00:02]}  Kg8 {[%clk 0:00:04]} 42. Rxf8+ {[%clk 0:00:01]}  Kxf8 {[%clk 0:00:05]} 43. Ne4 {[%clk 0:00:02]}  Bxe4 {[%clk 0:00:05]} 44. fxe4 {[%clk 0:00:03]}  b4 {[%clk 0:00:05]} 45. Rb7 {[%clk 0:00:02]}  a5 {[%clk 0:00:05]} 46. Kg3 {[%clk 0:00:02]}  Rb2 {[%clk 0:00:05]} 47. f4 {[%clk 0:00:02]}  a4 {[%clk 0:00:06]} 48. e5 {[%clk 0:00:02]}  a3 {[%clk 0:00:06]} 49. Ra7 {[%clk 0:00:02]}  a2 {[%clk 0:00:06]} 50. f5 {[%clk 0:00:03]}  b3 {[%clk 0:00:06]} 51. Ra8+ {[%clk 0:00:03]}  Ke7 {[%clk 0:00:06]} 52. Ra7+ {[%clk 0:00:04]}  Kd8 {[%clk 0:00:06]} 53. Ra8+ {[%clk 0:00:05]}  Kc7 {[%clk 0:00:06]} 54. f6 {[%clk 0:00:05]}  gxf6 {[%clk 0:00:06]} 55. exf6 {[%clk 0:00:06]}  Rb1 {[%clk 0:00:05]} 56. Kg2 {[%clk 0:00:03]}  a1=Q {[%clk 0:00:05]} 57. Rxa1 {[%clk 0:00:02]}  Rxa1 {[%clk 0:00:06]} 58. f7 {[%clk 0:00:00]}  Ra8 {[%clk 0:00:06]} 0-1


[Site "https://www.chess.com"]

[Event "Titled Tuesday Blitz November 07 Early 2023"]
[White "Klukin, Kirill"]
[Black "Thomforde-Toates, Noah"]
[WhiteFideId "24199273"]
[BlackFideId "30951992"]
[WhiteElo "2852"]
[BlackElo "2656"]
[Result "1-0"]
[Round "7"]
[TimeControl "180+1"]
[Date "2023.11.07"]
[WhiteClock "0:00:18"]
[BlackClock "0:00:27"]
[Board "30"]

1. d4 {[%clk 0:03:00]}  Nf6 {[%clk 0:02:43]} 2. c4 {[%clk 0:03:00]}  g6 {[%clk 0:02:42]} 3. Nc3 {[%clk 0:03:00]}  Bg7 {[%clk 0:02:42]} 4. e4 {[%clk 0:02:54]}  d6 {[%clk 0:02:42]} 5. h3 {[%clk 0:02:54]}  O-O {[%clk 0:02:42]} 6. Be3 {[%clk 0:02:55]}  c5 {[%clk 0:02:40]} 7. Nf3 {[%clk 0:02:54]}  cxd4 {[%clk 0:02:39]} 8. Nxd4 {[%clk 0:02:52]}  Nc6 {[%clk 0:02:39]} 9. Nc2 {[%clk 0:02:41]}  Be6 {[%clk 0:02:36]} 10. Rc1 {[%clk 0:02:41]}  Qa5 {[%clk 0:02:35]} 11. Qd2 {[%clk 0:02:39]}  Rfc8 {[%clk 0:02:35]} 12. Be2 {[%clk 0:02:25]}  Ne5 {[%clk 0:02:33]} 13. b3 {[%clk 0:01:53]}  a6 {[%clk 0:01:15]} 14. Nd4 {[%clk 0:01:30]}  b5 {[%clk 0:01:05]} 15. Nxe6 {[%clk 0:01:21]}  fxe6 {[%clk 0:01:04]} 16. f4 {[%clk 0:00:54]}  b4 {[%clk 0:01:00]} 17. Na4 {[%clk 0:00:49]}  Nxe4 {[%clk 0:00:59]} 18. Qc2 {[%clk 0:00:49]}  Ng3 {[%clk 0:00:53]} 19. Bb6 {[%clk 0:00:47]}  Qxa4 {[%clk 0:00:26]} 20. bxa4 {[%clk 0:00:45]}  Nd7 {[%clk 0:00:23]} 21. Be3 {[%clk 0:00:11]}  Nxh1 {[%clk 0:00:22]} 22. Bf3 {[%clk 0:00:08]}  Bc3+ {[%clk 0:00:20]} 23. Kf1 {[%clk 0:00:05]}  Ng3+ {[%clk 0:00:20]} 24. Kf2 {[%clk 0:00:05]}  Nf5 {[%clk 0:00:20]} 25. Bxa8 {[%clk 0:00:05]}  Rxa8 {[%clk 0:00:21]} 26. Qe4 {[%clk 0:00:06]}  Rd8 {[%clk 0:00:20]} 27. Qxe6+ {[%clk 0:00:05]}  Kf8 {[%clk 0:00:21]} 28. g4 {[%clk 0:00:05]}  Nxe3 {[%clk 0:00:21]} 29. Qxe3 {[%clk 0:00:05]}  e5 {[%clk 0:00:21]} 30. Rxc3 {[%clk 0:00:05]}  bxc3 {[%clk 0:00:20]} 31. Qxc3 {[%clk 0:00:06]}  exf4 {[%clk 0:00:21]} 32. Qh8+ {[%clk 0:00:06]}  Ke7 {[%clk 0:00:21]} 33. Qxh7+ {[%clk 0:00:07]}  Ke6 {[%clk 0:00:22]} 34. Qxg6+ {[%clk 0:00:07]}  Ke7 {[%clk 0:00:22]} 35. Qg5+ {[%clk 0:00:07]}  Nf6 {[%clk 0:00:22]} 36. Qxf4 {[%clk 0:00:06]}  Rf8 {[%clk 0:00:22]} 37. Kg2 {[%clk 0:00:07]}  Nd7 {[%clk 0:00:22]} 38. Qe3+ {[%clk 0:00:07]}  Ne5 {[%clk 0:00:22]} 39. c5 {[%clk 0:00:07]}  Rc8 {[%clk 0:00:22]} 40. cxd6+ {[%clk 0:00:07]}  Kxd6 {[%clk 0:00:23]} 41. Qd4+ {[%clk 0:00:07]}  Ke6 {[%clk 0:00:23]} 42. Qb6+ {[%clk 0:00:07]}  Rc6 {[%clk 0:00:24]} 43. Qb3+ {[%clk 0:00:08]}  Kf6 {[%clk 0:00:23]} 44. Kg3 {[%clk 0:00:08]}  Rd6 {[%clk 0:00:23]} 45. Kf4 {[%clk 0:00:04]}  Rd4+ {[%clk 0:00:23]} 46. Ke3 {[%clk 0:00:04]}  Rd6 {[%clk 0:00:23]} 47. Ke4 {[%clk 0:00:03]}  Nd7 {[%clk 0:00:19]} 48. Qc3+ {[%clk 0:00:04]}  Kf7 {[%clk 0:00:19]} 49. Kf4 {[%clk 0:00:04]}  Rf6+ {[%clk 0:00:19]} 50. Kg3 {[%clk 0:00:05]}  Re6 {[%clk 0:00:19]} 51. h4 {[%clk 0:00:05]}  Rd6 {[%clk 0:00:19]} 52. Qb3+ {[%clk 0:00:05]}  Ke7 {[%clk 0:00:19]} 53. g5 {[%clk 0:00:06]}  Ne5 {[%clk 0:00:19]} 54. Kf4 {[%clk 0:00:07]}  Ng6+ {[%clk 0:00:19]} 55. Kg3 {[%clk 0:00:04]}  Ne5 {[%clk 0:00:18]} 56. h5 {[%clk 0:00:04]}  Rd3+ {[%clk 0:00:18]} 57. Kf4 {[%clk 0:00:04]}  Rxb3 {[%clk 0:00:17]} 58. axb3 {[%clk 0:00:05]}  Nd3+ {[%clk 0:00:17]} 59. Kf5 {[%clk 0:00:05]}  Nc5 {[%clk 0:00:17]} 60. h6 {[%clk 0:00:05]}  Kf8 {[%clk 0:00:16]} 61. g6 {[%clk 0:00:05]}  Nd7 {[%clk 0:00:16]} 62. Ke6 {[%clk 0:00:05]}  Nc5+ {[%clk 0:00:16]} 63. Kf6 {[%clk 0:00:06]}  Nd7+ {[%clk 0:00:16]} 64. Kf5 {[%clk 0:00:06]}  Nc5 {[%clk 0:00:16]} 65. b4 {[%clk 0:00:06]}  Nd7 {[%clk 0:00:16]} 66. Ke6 {[%clk 0:00:06]}  Nb8 {[%clk 0:00:17]} 67. Kd6 {[%clk 0:00:06]}  Ke8 {[%clk 0:00:15]} 68. Kc7 {[%clk 0:00:06]}  Nd7 {[%clk 0:00:15]} 69. h7 {[%clk 0:00:05]}  Ke7 {[%clk 0:00:15]} 70. h8=Q {[%clk 0:00:06]}  Nf6 {[%clk 0:00:16]} 71. Qxf6+ {[%clk 0:00:06]}  Kxf6 {[%clk 0:00:17]} 72. Kb6 {[%clk 0:00:07]}  a5 {[%clk 0:00:17]} 73. bxa5 {[%clk 0:00:08]}  Kxg6 {[%clk 0:00:17]} 74. a6 {[%clk 0:00:08]}  Kf5 {[%clk 0:00:18]} 75. a7 {[%clk 0:00:09]}  Kf4 {[%clk 0:00:19]} 76. a8=Q {[%clk 0:00:10]}  Ke3 {[%clk 0:00:20]} 77. Qc6 {[%clk 0:00:11]}  Kf4 {[%clk 0:00:21]} 78. a5 {[%clk 0:00:12]}  Ke5 {[%clk 0:00:21]} 79. a6 {[%clk 0:00:13]}  Kf5 {[%clk 0:00:22]} 80. a7 {[%clk 0:00:14]}  Ke5 {[%clk 0:00:23]} 81. a8=Q {[%clk 0:00:14]}  Kf4 {[%clk 0:00:24]} 82. Qf8+ {[%clk 0:00:15]}  Ke3 {[%clk 0:00:25]} 83. Qe6+ {[%clk 0:00:15]}  Kd4 {[%clk 0:00:25]} 84. Qf4+ {[%clk 0:00:15]}  Kc3 {[%clk 0:00:26]} 85. Qee3+ {[%clk 0:00:16]}  Kc2 {[%clk 0:00:26]} 86. Qff2+ {[%clk 0:00:17]}  Kd1 {[%clk 0:00:27]} 87. Qee1# {[%clk 0:00:18]} 1-0


[Site "https://www.chess.com"]

[Event "Titled Tuesday Blitz November 07 Early 2023"]
[White "Jakubowski, Krzysztof"]
[Black "Shuvalov, Evgenij"]
[WhiteFideId "1112848"]
[BlackFideId "4187237"]
[WhiteElo "2685"]
[BlackElo "2476"]
[Result "1-0"]
[Round "7"]
[TimeControl "180+1"]
[Date "2023.11.07"]
[WhiteClock "0:00:24"]
[BlackClock "0:00:00"]
[Board "31"]

1. e4 {[%clk 0:03:00]}  e6 {[%clk 0:03:00]} 2. d4 {[%clk 0:03:00]}  d5 {[%clk 0:03:00]} 3. Nc3 {[%clk 0:03:00]}  Bb4 {[%clk 0:02:59]} 4. e5 {[%clk 0:03:00]}  c5 {[%clk 0:02:59]} 5. a3 {[%clk 0:03:00]}  Bxc3+ {[%clk 0:02:59]} 6. bxc3 {[%clk 0:03:00]}  Ne7 {[%clk 0:03:00]} 7. h4 {[%clk 0:02:58]}  Qa5 {[%clk 0:02:56]} 8. Bd2 {[%clk 0:02:56]}  Nbc6 {[%clk 0:02:56]} 9. Nf3 {[%clk 0:02:48]}  Qa4 {[%clk 0:02:53]} 10. Qb1 {[%clk 0:02:43]}  c4 {[%clk 0:02:53]} 11. h5 {[%clk 0:02:41]}  h6 {[%clk 0:02:52]} 12. Be2 {[%clk 0:02:40]}  Bd7 {[%clk 0:02:50]} 13. O-O {[%clk 0:02:39]}  O-O-O {[%clk 0:02:49]} 14. Re1 {[%clk 0:02:38]}  Kb8 {[%clk 0:02:35]} 15. Bf4 {[%clk 0:02:37]}  Ka8 {[%clk 0:02:35]} 16. Qc1 {[%clk 0:02:37]}  a6 {[%clk 0:02:29]} 17. Nh2 {[%clk 0:02:36]}  Nc8 {[%clk 0:02:29]} 18. Bg4 {[%clk 0:02:36]}  N8a7 {[%clk 0:02:29]} 19. Bh3 {[%clk 0:02:36]}  Nb5 {[%clk 0:02:29]} 20. Qb2 {[%clk 0:02:27]}  Qa5 {[%clk 0:02:26]} 21. Re3 {[%clk 0:02:24]}  Qa4 {[%clk 0:02:17]} 22. Rg3 {[%clk 0:02:18]}  Rhg8 {[%clk 0:02:16]} 23. Nf1 {[%clk 0:02:16]}  Bc8 {[%clk 0:02:03]} 24. Bd2 {[%clk 0:02:13]}  Rdf8 {[%clk 0:01:58]} 25. Ne3 {[%clk 0:02:00]}  Qa5 {[%clk 0:01:51]} 26. a4 {[%clk 0:01:56]}  Nbxd4 {[%clk 0:01:45]} 27. Re1 {[%clk 0:01:38]}  Nf5 {[%clk 0:01:21]} 28. Nxf5 {[%clk 0:01:34]}  exf5 {[%clk 0:01:22]} 29. Rf3 {[%clk 0:01:32]}  d4 {[%clk 0:01:06]} 30. Bxf5 {[%clk 0:01:24]}  Nxe5 {[%clk 0:01:04]} 31. Rf4 {[%clk 0:01:14]}  g5 {[%clk 0:00:47]} 32. Bxc8 {[%clk 0:01:06]}  Rxc8 {[%clk 0:00:43]} 33. Rb1 {[%clk 0:01:02]}  Rc7 {[%clk 0:00:37]} 34. Rxd4 {[%clk 0:01:01]}  Re8 {[%clk 0:00:30]} 35. Rd6 {[%clk 0:00:56]}  Re6 {[%clk 0:00:25]} 36. Rd8+ {[%clk 0:00:55]}  Ka7 {[%clk 0:00:25]} 37. Be3+ {[%clk 0:00:55]}  b6 {[%clk 0:00:22]} 38. Qa3 {[%clk 0:00:52]}  Ng4 {[%clk 0:00:18]} 39. Bd4 {[%clk 0:00:37]}  Qf5 {[%clk 0:00:15]} 40. a5 {[%clk 0:00:32]}  Kb7 {[%clk 0:00:11]} 41. Bxb6 {[%clk 0:00:28]}  Rcc6 {[%clk 0:00:05]} 42. Bd4+ {[%clk 0:00:25]}  Kc7 {[%clk 0:00:00]} 43. Qf8 {[%clk 0:00:24]} 1-0


[Site "https://www.chess.com"]

[Event "Titled Tuesday Blitz November 07 Early 2023"]
[White "Le, Tuan Minh"]
[Black "Tikhonov, Viacheslav"]
[WhiteFideId "12401153"]
[BlackFideId "44196407"]
[WhiteElo "3061"]
[BlackElo "2562"]
[Result "1-0"]
[Round "7"]
[TimeControl "180+1"]
[Date "2023.11.07"]
[WhiteClock "0:02:00"]
[BlackClock "0:00:00"]
[Board "32"]

1. d4 {[%clk 0:02:53]}  Nf6 {[%clk 0:02:57]} 2. Nf3 {[%clk 0:02:53]}  d5 {[%clk 0:02:55]} 3. Bf4 {[%clk 0:02:53]}  c5 {[%clk 0:02:52]} 4. c3 {[%clk 0:02:53]}  Nc6 {[%clk 0:02:44]} 5. e3 {[%clk 0:02:53]}  Qb6 {[%clk 0:02:43]} 6. Qc2 {[%clk 0:02:53]}  g6 {[%clk 0:02:35]} 7. Nbd2 {[%clk 0:02:51]}  Bf5 {[%clk 0:02:33]} 8. dxc5 {[%clk 0:02:48]}  Qxc5 {[%clk 0:02:32]} 9. Qb3 {[%clk 0:02:48]}  Bc8 {[%clk 0:01:50]} 10. Be2 {[%clk 0:02:45]}  Bg7 {[%clk 0:01:49]} 11. O-O {[%clk 0:02:45]}  O-O {[%clk 0:01:49]} 12. Rac1 {[%clk 0:02:46]}  Nh5 {[%clk 0:01:44]} 13. Bg5 {[%clk 0:02:44]}  h6 {[%clk 0:01:41]} 14. Bh4 {[%clk 0:02:44]}  e5 {[%clk 0:01:31]} 15. c4 {[%clk 0:02:31]}  Na5 {[%clk 0:01:14]} 16. Qa4 {[%clk 0:02:20]}  Nc6 {[%clk 0:00:43]} 17. Nb3 {[%clk 0:02:11]}  Qb4 {[%clk 0:00:42]} 18. Qxb4 {[%clk 0:02:10]}  Nxb4 {[%clk 0:00:42]} 19. Be7 {[%clk 0:02:08]}  dxc4 {[%clk 0:00:36]} 20. Bxc4 {[%clk 0:02:03]}  Nc6 {[%clk 0:00:28]} 21. Bxf8 {[%clk 0:02:04]}  Bxf8 {[%clk 0:00:23]} 22. Rfd1 {[%clk 0:02:04]}  Bg4 {[%clk 0:00:23]} 23. h3 {[%clk 0:02:04]}  Bxf3 {[%clk 0:00:22]} 24. gxf3 {[%clk 0:02:05]}  Nf6 {[%clk 0:00:20]} 25. Bb5 {[%clk 0:02:02]}  Nb4 {[%clk 0:00:02]} 26. Rc7 {[%clk 0:02:02]}  b6 {[%clk 0:00:02]} 27. Bc4 {[%clk 0:02:02]}  Bg7 {[%clk 0:00:00]} 28. a3 {[%clk 0:02:00]} 1-0


[Site "https://www.chess.com"]

[Event "Titled Tuesday Blitz November 07 Early 2023"]
[White "Ibarra Jerez, Jose Carlos"]
[Black "carokannlover213"]
[WhiteFideId "2226332"]
[WhiteElo "2981"]
[BlackElo "2696"]
[Result "1-0"]
[Round "7"]
[TimeControl "180+1"]
[Date "2023.11.07"]
[WhiteClock "0:00:33"]
[BlackClock "0:00:26"]
[Board "34"]

1. e4 {[%clk 0:03:00]}  c5 {[%clk 0:02:59]} 2. Nf3 {[%clk 0:02:56]}  d6 {[%clk 0:02:58]} 3. c3 {[%clk 0:02:56]}  Nf6 {[%clk 0:02:59]} 4. h3 {[%clk 0:02:56]}  Nc6 {[%clk 0:02:58]} 5. Bd3 {[%clk 0:02:55]}  e5 {[%clk 0:02:58]} 6. Bc2 {[%clk 0:02:54]}  g6 {[%clk 0:02:55]} 7. d4 {[%clk 0:02:54]}  cxd4 {[%clk 0:02:51]} 8. cxd4 {[%clk 0:02:55]}  exd4 {[%clk 0:02:43]} 9. Nxd4 {[%clk 0:02:54]}  Bg7 {[%clk 0:02:44]} 10. O-O {[%clk 0:02:53]}  O-O {[%clk 0:02:42]} 11. Nc3 {[%clk 0:02:54]}  Re8 {[%clk 0:02:41]} 12. Ndb5 {[%clk 0:02:53]}  Bf8 {[%clk 0:02:05]} 13. Bf4 {[%clk 0:02:53]}  Ne5 {[%clk 0:02:04]} 14. Bg5 {[%clk 0:02:52]}  a6 {[%clk 0:02:02]} 15. Nd5 {[%clk 0:02:32]}  Be7 {[%clk 0:02:01]} 16. Nxe7+ {[%clk 0:02:12]}  Qxe7 {[%clk 0:01:54]} 17. Bxf6 {[%clk 0:02:09]}  Qxf6 {[%clk 0:01:53]} 18. Nc7 {[%clk 0:02:10]}  Bxh3 {[%clk 0:01:43]} 19. f4 {[%clk 0:01:32]}  Bxg2 {[%clk 0:00:53]} 20. Nxe8 {[%clk 0:01:24]}  Qh4 {[%clk 0:00:52]} 21. Kxg2 {[%clk 0:01:11]}  Ng4 {[%clk 0:00:53]} 22. Nf6+ {[%clk 0:00:52]}  Nxf6 {[%clk 0:00:44]} 23. Qe1 {[%clk 0:00:52]}  Qh5 {[%clk 0:00:30]} 24. Bd1 {[%clk 0:00:50]}  Qb5 {[%clk 0:00:27]} 25. Qe2 {[%clk 0:00:46]}  Qc6 {[%clk 0:00:26]} 26. Bc2 {[%clk 0:00:36]}  Re8 {[%clk 0:00:26]} 27. Rae1 {[%clk 0:00:35]}  d5 {[%clk 0:00:26]} 28. e5 {[%clk 0:00:35]}  d4+ {[%clk 0:00:26]} 29. Be4 {[%clk 0:00:35]}  Nd5 {[%clk 0:00:26]} 30. Qf3 {[%clk 0:00:33]} 1-0


[Site "https://www.chess.com"]

[Event "Titled Tuesday Blitz November 07 Early 2023"]
[White "Alexandre, Anne Shopie Elizabeth"]
[Black "Chinguun, Sumiya"]
[WhiteFideId "11902418"]
[BlackFideId "4902572"]
[WhiteElo "2855"]
[BlackElo "2678"]
[Result "1-0"]
[Round "7"]
[TimeControl "180+1"]
[Date "2023.11.07"]
[WhiteClock "0:01:22"]
[BlackClock "0:01:22"]
[Board "40"]

1. d4 {[%clk 0:03:00]}  Nf6 {[%clk 0:02:59]} 2. c4 {[%clk 0:03:01]}  g6 {[%clk 0:02:59]} 3. Nc3 {[%clk 0:03:01]}  Bg7 {[%clk 0:03:00]} 4. e4 {[%clk 0:03:00]}  d6 {[%clk 0:03:01]} 5. h3 {[%clk 0:03:00]}  O-O {[%clk 0:03:02]} 6. Be3 {[%clk 0:03:00]}  e6 {[%clk 0:02:59]} 7. Nf3 {[%clk 0:02:57]}  Nc6 {[%clk 0:02:58]} 8. Be2 {[%clk 0:02:52]}  e5 {[%clk 0:02:57]} 9. d5 {[%clk 0:02:51]}  Ne7 {[%clk 0:02:57]} 10. g4 {[%clk 0:02:52]}  c6 {[%clk 0:02:50]} 11. Nd2 {[%clk 0:02:49]}  Bd7 {[%clk 0:02:47]} 12. h4 {[%clk 0:02:46]}  Qc8 {[%clk 0:02:43]} 13. Rg1 {[%clk 0:02:42]}  b5 {[%clk 0:02:38]} 14. g5 {[%clk 0:02:35]}  Ne8 {[%clk 0:02:37]} 15. cxb5 {[%clk 0:02:28]}  cxd5 {[%clk 0:02:34]} 16. exd5 {[%clk 0:02:29]}  Nf5 {[%clk 0:02:27]} 17. Nde4 {[%clk 0:02:25]}  Nxh4 {[%clk 0:02:10]} 18. Qd2 {[%clk 0:02:13]}  Nf5 {[%clk 0:02:03]} 19. O-O-O {[%clk 0:02:13]}  Nxe3 {[%clk 0:02:02]} 20. fxe3 {[%clk 0:02:12]}  Bf5 {[%clk 0:01:59]} 21. Kb1 {[%clk 0:02:10]}  f6 {[%clk 0:01:59]} 22. Ka1 {[%clk 0:02:09]}  Bxe4 {[%clk 0:01:57]} 23. Nxe4 {[%clk 0:02:07]}  f5 {[%clk 0:01:57]} 24. Nc3 {[%clk 0:02:07]}  f4 {[%clk 0:01:56]} 25. Bg4 {[%clk 0:02:04]}  Qd8 {[%clk 0:01:54]} 26. Be6+ {[%clk 0:01:54]}  Kh8 {[%clk 0:01:53]} 27. Ne4 {[%clk 0:01:54]}  Nc7 {[%clk 0:01:51]} 28. Rh1 {[%clk 0:01:49]}  Nxe6 {[%clk 0:01:45]} 29. dxe6 {[%clk 0:01:50]}  Rf5 {[%clk 0:01:44]} 30. Qh2 {[%clk 0:01:46]}  h5 {[%clk 0:01:43]} 31. Nxd6 {[%clk 0:01:39]}  Qxg5 {[%clk 0:01:40]} 32. Rdg1 {[%clk 0:01:32]}  Qf6 {[%clk 0:01:36]} 33. e4 {[%clk 0:01:32]}  Qxe6 {[%clk 0:01:34]} 34. exf5 {[%clk 0:01:24]}  Qxd6 {[%clk 0:01:34]} 35. Rxg6 {[%clk 0:01:24]}  Qd7 {[%clk 0:01:22]} 36. Qxh5+ {[%clk 0:01:22]} 1-0


[Site "https://www.chess.com"]

[Event "Titled Tuesday Blitz November 07 Early 2023"]
[White "Beerdsen, Thomas"]
[Black "Skvortsov, Andrei"]
[WhiteFideId "1030108"]
[BlackFideId "24108600"]
[WhiteElo "2832"]
[BlackElo "2669"]
[Result "1-0"]
[Round "7"]
[TimeControl "180+1"]
[Date "2023.11.07"]
[WhiteClock "0:01:55"]
[BlackClock "0:01:14"]
[Board "43"]

1. e4 {[%clk 0:03:00]}  d5 {[%clk 0:02:59]} 2. exd5 {[%clk 0:03:01]}  Qxd5 {[%clk 0:03:00]} 3. Nc3 {[%clk 0:03:01]}  Qe5+ {[%clk 0:03:00]} 4. Be2 {[%clk 0:03:01]}  Bg4 {[%clk 0:03:01]} 5. d4 {[%clk 0:03:01]}  Bxe2 {[%clk 0:03:01]} 6. Ngxe2 {[%clk 0:03:02]}  Qa5 {[%clk 0:03:01]} 7. b4 {[%clk 0:03:01]}  Qxb4 {[%clk 0:03:01]} 8. Rb1 {[%clk 0:03:02]}  Qc4 {[%clk 0:03:02]} 9. O-O {[%clk 0:03:01]}  Nf6 {[%clk 0:03:02]} 10. Rxb7 {[%clk 0:03:01]}  Na6 {[%clk 0:03:03]} 11. Bf4 {[%clk 0:02:57]}  e6 {[%clk 0:03:01]} 12. d5 {[%clk 0:02:51]}  Nxd5 {[%clk 0:02:43]} 13. Nxd5 {[%clk 0:02:48]}  exd5 {[%clk 0:02:40]} 14. Nd4 {[%clk 0:02:43]}  O-O-O {[%clk 0:02:29]} 15. Rxa7 {[%clk 0:02:41]}  Kb8 {[%clk 0:02:11]} 16. Rxa6 {[%clk 0:02:29]}  Qxa6 {[%clk 0:02:10]} 17. Qd2 {[%clk 0:02:21]}  Bc5 {[%clk 0:02:06]} 18. Rb1+ {[%clk 0:02:22]}  Ka8 {[%clk 0:02:06]} 19. Nb5 {[%clk 0:02:16]}  Bb6 {[%clk 0:01:52]} 20. Bxc7 {[%clk 0:02:16]}  Rd7 {[%clk 0:01:39]} 21. Qc3 {[%clk 0:02:00]}  Rc8 {[%clk 0:01:30]} 22. Qc6+ {[%clk 0:01:59]}  Qb7 {[%clk 0:01:28]} 23. Qxd7 {[%clk 0:01:59]}  Bxc7 {[%clk 0:01:22]} 24. Nxc7+ {[%clk 0:01:59]}  Qxc7 {[%clk 0:01:19]} 25. Qxd5+ {[%clk 0:01:58]}  Ka7 {[%clk 0:01:19]} 26. Qd4+ {[%clk 0:01:56]}  Ka8 {[%clk 0:01:14]} 27. Qa4+ {[%clk 0:01:55]} 1-0


[Site "https://www.chess.com"]

[Event "Titled Tuesday Blitz November 07 Early 2023"]
[White "Kleiman, Jake"]
[Black "mind1mover"]
[WhiteFideId "2020041"]
[WhiteElo "2662"]
[BlackElo "2824"]
[Result "1-0"]
[Round "7"]
[TimeControl "180+1"]
[Date "2023.11.07"]
[WhiteClock "0:00:08"]
[BlackClock "0:00:00"]
[Board "44"]

1. e4 {[%clk 0:03:00]}  Nc6 {[%clk 0:02:57]} 2. Nf3 {[%clk 0:03:00]}  d6 {[%clk 0:02:57]} 3. d4 {[%clk 0:03:00]}  Nf6 {[%clk 0:02:58]} 4. Nc3 {[%clk 0:03:01]}  g6 {[%clk 0:02:58]} 5. h3 {[%clk 0:02:59]}  a6 {[%clk 0:02:58]} 6. Be3 {[%clk 0:02:59]}  b5 {[%clk 0:02:58]} 7. Bd3 {[%clk 0:02:58]}  Bg7 {[%clk 0:02:56]} 8. a4 {[%clk 0:02:56]}  b4 {[%clk 0:02:54]} 9. Ne2 {[%clk 0:02:57]}  O-O {[%clk 0:02:54]} 10. Qd2 {[%clk 0:02:57]}  a5 {[%clk 0:02:47]} 11. Bh6 {[%clk 0:02:54]}  Ba6 {[%clk 0:02:45]} 12. h4 {[%clk 0:02:47]}  d5 {[%clk 0:02:30]} 13. e5 {[%clk 0:02:40]}  Ne4 {[%clk 0:02:29]} 14. Qe3 {[%clk 0:02:40]}  f6 {[%clk 0:01:50]} 15. Bxg7 {[%clk 0:02:19]}  Kxg7 {[%clk 0:01:49]} 16. h5 {[%clk 0:01:34]}  g5 {[%clk 0:01:50]} 17. h6+ {[%clk 0:01:29]}  Kh8 {[%clk 0:01:50]} 18. Bxe4 {[%clk 0:01:03]}  dxe4 {[%clk 0:01:50]} 19. Qxe4 {[%clk 0:01:04]}  Bb7 {[%clk 0:01:50]} 20. d5 {[%clk 0:00:49]}  Nxe5 {[%clk 0:01:46]} 21. Nxe5 {[%clk 0:00:45]}  Bxd5 {[%clk 0:01:45]} 22. Qe3 {[%clk 0:00:45]}  fxe5 {[%clk 0:01:31]} 23. Qxe5+ {[%clk 0:00:45]}  Rf6 {[%clk 0:01:31]} 24. O-O-O {[%clk 0:00:45]}  c6 {[%clk 0:01:29]} 25. f3 {[%clk 0:00:30]}  Qd6 {[%clk 0:01:19]} 26. Qxg5 {[%clk 0:00:30]}  Rg8 {[%clk 0:01:19]} 27. Qe3 {[%clk 0:00:25]}  Rxg2 {[%clk 0:01:11]} 28. Rhg1 {[%clk 0:00:24]}  Rxf3 {[%clk 0:00:43]} 29. Qd4+ {[%clk 0:00:19]}  e5 {[%clk 0:00:40]} 30. Qa7 {[%clk 0:00:16]}  Qxh6+ {[%clk 0:00:25]} 31. Kb1 {[%clk 0:00:16]}  Rff2 {[%clk 0:00:12]} 32. Qb8+ {[%clk 0:00:14]}  Rf8 {[%clk 0:00:05]} 33. Qxe5+ {[%clk 0:00:14]}  Qg7 {[%clk 0:00:05]} 34. Qe3 {[%clk 0:00:13]}  Rg8 {[%clk 0:00:04]} 35. Rxg2 {[%clk 0:00:12]}  Qxg2 {[%clk 0:00:05]} 36. Rg1 {[%clk 0:00:11]}  Qe4 {[%clk 0:00:04]} 37. Qf2 {[%clk 0:00:11]}  Rxg1+ {[%clk 0:00:04]} 38. Nxg1 {[%clk 0:00:09]}  Kg7 {[%clk 0:00:02]} 39. Ne2 {[%clk 0:00:09]}  Qg2 {[%clk 0:00:01]} 40. Qe3 {[%clk 0:00:09]}  Qg6 {[%clk 0:00:01]} 41. Nf4 {[%clk 0:00:09]}  Qf5 {[%clk 0:00:01]} 42. Qe7+ {[%clk 0:00:09]}  Bf7 {[%clk 0:00:01]} 43. Qe3 {[%clk 0:00:08]}  h5 {[%clk 0:00:01]} 44. Qg3+ {[%clk 0:00:08]}  Qg4 {[%clk 0:00:01]} 45. Qe3 {[%clk 0:00:08]}  h4 {[%clk 0:00:00]} 46. Qe5+ {[%clk 0:00:08]} 1-0


[Site "https://www.chess.com"]